bitfinex/quotes_SOLUSD_20241220
["timestamp","ask_amount","ask_price","bid_price","bid_amount"]
[1734694429101,43.4049542,178.95,178.86,43.4049542]
[1734694429403,43.4049542,178.97,178.86,43.4049542]
[1734694429610,30.0,179.02,178.84,13.9786]
[1734694429611,0.8336353,178.96,178.9,43.4049542]
[1734694429806,43.4049542,178.97,178.88,43.4049542]
[1734694430025,0.8336353,178.96,178.87,13.9762]
[1734694430413,43.4049542,178.95,178.84,43.4049542]
[1734694430607,0.8336353,178.94,178.84,43.4049542]
[1734694430813,0.8336353,179.0,178.94,0.12549]
[1734694431018,0.8336353,179.02,178.92,43.4049542]
[1734694431319,0.8336353,179.02,178.94,0.12549]
[1734694431520,43.4049542,179.05,178.94,43.5304442]
[1734694431822,43.4049542,179.05,178.97,0.12549]
[1734694432023,43.4049542,179.03,178.97,0.12549]
[1734694432223,43.4049542,179.01,178.93,14.2972496]
[1734694432430,43.4049542,179.03,178.93,14.2972496]
[1734694432620,43.4049542,179.03,178.94,43.4049542]
[1734694432935,43.4049542,179.05,178.94,43.4049542]
[1734694433217,0.8336353,179.09,179.0,43.4049542]
[1734694433429,43.4049542,179.12,179.02,43.4049542]
[1734694433731,43.4049542,179.06,178.98,10.7362]
[1734694434020,43.4049542,179.1,179.02,0.3257496]
[1734694434021,0.8336353,179.05,179.02,0.3257496]
[1734694434221,0.8336353,179.09,179.02,0.3257496]
[1734694434408,43.4049542,179.04,179.02,0.3257496]
[1734694434612,43.4049542,179.08,179.02,0.3257496]
[1734694434812,43.4049542,179.06,179.02,0.3257496]
[1734694435128,0.8336353,179.05,179.02,0.3257496]
[1734694435310,43.4049542,179.06,179.02,0.3257496]
[1734694435927,43.4049542,179.04,179.02,0.3257496]
[1734694436428,0.8336353,179.03,179.02,0.3257496]
[1734694436822,43.4049542,179.04,179.02,0.3257496]
[1734694437126,0.8336353,179.03,179.02,0.3257496]
[1734694437737,0.8336353,179.03,178.71,55.9549]
[1734694437738,30.0,178.93,178.83,0.7150681]
[1734694437901,43.4049542,178.84,178.83,0.7150681]
[1734694438241,30.0,178.81,178.7,26.602314]
[1734694438523,43.4049542,178.75,178.7,4.1983]
[1734694438730,0.8336353,178.8,178.7,4.1983]
[1734694438731,43.4049542,178.77,178.7,4.1983]
[1734694439133,43.4049542,178.71,178.6,13.9974]
[1734694439430,43.4049542,178.71,178.61,13.9911]
[1734694439633,43.4049542,178.71,178.65,13.9938]
[1734694440009,43.4049542,178.75,178.66,43.4049542]
[1734694440419,43.4049542,178.75,178.65,13.9938]
[1734694440603,43.4049542,178.77,178.66,43.4049542]
[1734694440810,43.4049542,178.77,178.68,43.4049542]
[1734694441160,43.4049542,178.73,178.65,13.9938]
[1734694441333,43.4049542,178.69,178.64,0.7150681]
[1734694441641,43.4049542,178.67,178.64,0.7150681]
[1734694442451,43.4049542,178.65,178.64,0.7150681]
[1734694442610,19.2849319,178.64,178.54,22.419101]
[1734694442809,20.1185672,178.64,178.54,65.8240552]
[1734694443015,43.4049542,178.61,178.53,14.0031]
[1734694443237,43.4049542,178.55,178.49,14.006]
[1734694443435,43.4049542,178.55,178.45,44.1200223]
[1734694443732,0.8336353,178.62,178.53,43.4049542]
[1734694444156,0.8336353,178.62,178.48,0.83973138]
[1734694444157,43.4049542,178.59,178.49,43.4049542]
[1734694444436,43.4049542,178.57,178.47,43.4049542]
[1734694444640,43.4049542,178.59,178.49,43.4049542]
[1734694444813,43.4049542,178.57,178.49,43.4049542]
[1734694445332,43.4049542,178.59,178.5,22.427843]
[1734694445522,43.4049542,178.57,178.5,22.427843]
[1734694445849,43.4049542,178.57,178.48,14.0071]
[1734694446329,43.4049542,178.61,178.52,0.12549]
[1734694446525,0.8336353,178.6,178.54,0.12549]
[1734694446847,43.4049542,178.59,178.54,0.12549]
[1734694447141,0.8336353,178.58,178.49,43.4049542]
[1734694447636,43.4049542,178.61,178.53,0.12549]
[1734694447931,43.4049542,178.61,178.5,22.429849]
[1734694447932,30.0,178.56,178.5,22.429849]
[1734694448132,0.8336353,178.55,178.42,4.0985]
[1734694448339,30.0,178.6,178.42,4.0985]
[1734694448340,0.8336353,178.59,178.43,22.436333]
[1734694448521,0.8336353,178.59,178.42,4.0985]
[1734694448738,0.8336353,178.59,178.43,22.436092]
[1734694449023,43.4049542,178.54,178.44,43.4049542]
[1734694449337,0.8336353,178.53,178.44,43.4049542]
[1734694449533,43.4049542,178.51,178.43,22.436092]
[1734694449743,0.8336353,178.5,178.42,18.1102]
[1734694449915,0.8336353,178.5,178.42,4.0985]
[1734694449916,43.4049542,178.49,178.42,4.0985]
[1734694450116,43.4049542,178.53,178.42,47.5034542]
[1734694450338,0.8336353,178.52,178.46,0.12549]
[1734694450919,43.4049542,178.51,178.42,4.0985]
[1734694451125,43.4049542,178.47,178.36,43.4049542]
[1734694451325,43.4049542,178.47,178.35,14.0172]
[1734694451326,0.8336353,178.46,178.38,43.4049542]
[1734694451741,0.8336353,178.48,178.38,57.4193542]
[1734694451943,0.8336353,178.48,178.4,43.4049542]
[1734694452448,43.4049542,178.49,178.4,43.4049542]
[1734694452745,43.4049542,178.47,178.36,43.4049542]
[1734694452945,84.5542437,178.47,178.34,57.4229542]
[1734694453125,114.5542437,178.47,178.34,14.018]
[1734694453321,6.3557,178.46,178.29,14.0213]
[1734694453526,43.4049542,178.39,178.29,14.86221993]
[1734694453739,43.4049542,178.37,178.29,14.0213]
[1734694453940,43.4049542,178.37,178.28,43.4049542]
[1734694454246,43.4049542,178.39,178.3,43.4049542]
[1734694454441,43.4049542,178.41,178.32,43.4049542]
[1734694454618,43.4049542,178.37,178.28,14.0228]
[1734694455026,43.4049542,178.47,178.28,14.0228]
[1734694455027,43.4049542,178.35,178.28,1.16995997]
[1734694455230,30.0,178.39,178.29,43.4049542]
[1734694455231,43.4049542,178.38,178.29,43.4049542]
[1734694455735,43.4049542,178.36,178.28,1.16995997]
[1734694456343,73.4049542,178.4,178.29,43.4049542]
[1734694456523,30.0,178.4,178.31,43.4049542]
[1734694456718,30.0,178.43,178.36,20.0]
[1734694456930,43.4049542,178.44,178.37,0.12549]
[1734694457143,43.4049542,178.44,178.36,20.0]
[1734694457346,43.4049542,178.44,178.36,23.776884]
[1734694457643,43.4049542,178.42,178.31,43.4049542]
[1734694457845,43.4049542,178.38,178.3,36.477041]
[1734694458150,43.4049542,178.36,178.27,56.3006831]
[1734694458840,43.4049542,178.4,178.31,43.4049542]
[1734694459036,43.4049542,178.42,178.32,0.12549]
[1734694459241,43.4049542,178.4,178.32,0.12549]
[1734694459549,43.4049542,178.48,178.38,63.4049542]
[1734694459842,43.4049542,178.39,178.3,43.4049542]
[1734694460051,43.4049542,178.41,178.3,43.4049542]
[1734694460226,43.4049542,178.39,178.3,43.4049542]
[1734694460841,43.4049542,178.39,178.31,0.12549]
[1734694461051,43.4049542,178.41,178.31,14.14599]
[1734694461237,43.4049542,178.42,178.32,43.4049542]
[1734694461443,43.4049542,178.4,178.3,43.4049542]
[1734694462052,43.4049542,178.36,178.28,1.16995997]
[1734694462458,43.4049542,178.4,178.29,43.4049542]
[1734694462648,43.4049542,178.47,178.31,43.4049542]
[1734694462649,43.4049542,178.42,178.31,43.4049542]
[1734694462827,43.4049542,178.42,178.28,2.01103025]
[1734694463022,43.4049542,178.42,178.32,43.4049542]
[1734694463223,30.0,178.42,178.29,14.022]
[1734694463428,43.4049542,178.31,178.28,1.16995997]
[1734694463735,43.4049542,178.33,178.28,1.16995997]
[1734694464234,43.4049542,178.29,178.28,1.16995997]
[1734694464633,30.0,178.34,178.28,1.16995997]
[1734694464842,6.3202,178.35,178.28,1.16995997]
[1734694464843,43.4049542,178.31,178.28,1.16995997]
[1734694465027,43.4049542,178.33,178.28,1.16995997]
[1734694465549,43.4049542,178.38,178.28,1.16995997]
[1734694465550,43.4049542,178.29,178.28,1.16995997]
[1734694465750,43.4049542,178.31,178.28,1.16995997]
[1734694465959,43.4049542,178.29,178.28,1.16995997]
[1734694467556,43.4049542,178.31,178.28,1.16995997]
[1734694468428,30.0,178.37,178.28,1.16995997]
[1734694468633,43.4049542,178.37,178.28,1.16995997]
[1734694468831,43.4049542,178.37,178.29,0.12549]
[1734694469063,43.4049542,178.39,178.29,0.12549]
[1734694469229,43.4049542,178.37,178.3,20.84103797]
[1734694469435,43.4049542,178.39,178.3,20.84103797]
[1734694469648,43.4049542,178.39,178.32,20.0]
[1734694470065,43.4049542,178.37,178.31,0.12549]
[1734694470368,43.4049542,178.33,178.31,1.16995997]
[1734694472160,30.0,178.43,178.32,0.12549]
[1734694472354,43.4049542,178.36,178.32,0.12549]
[1734694472531,43.4049542,178.34,178.32,0.12549]
[1734694472732,43.4049542,178.36,178.32,0.12549]
[1734694473139,43.4049542,178.34,178.31,1.16995997]
[1734694473351,43.4049542,178.32,178.31,1.16995997]
[1734694474155,43.4049542,178.34,178.31,1.16995997]
[1734694474358,43.4049542,178.32,178.31,1.16995997]
[1734694477044,43.4049542,178.34,178.32,0.12549]
[1734694477233,43.4049542,178.38,178.32,0.12549]
[1734694477430,43.4049542,178.4,178.32,0.12549]
[1734694477659,43.4049542,178.4,178.34,0.12549]
[1734694477956,43.4049542,178.38,178.34,0.12549]
[1734694478160,43.4049542,178.36,178.31,1.16995997]
[1734694478535,43.4049542,178.47,178.37,32.1]
[1734694478536,43.4049542,178.38,178.37,32.1]
[1734694479543,86.8099084,178.38,178.37,32.1]
[1734694479941,116.8099084,178.38,178.37,32.1]
[1734694480639,30.0,178.35,178.31,1.16995997]
[1734694480931,43.4049542,178.32,178.31,1.16995997]
[1734694482648,73.4049542,178.32,178.31,1.16995997]
[1734694482955,43.4049542,178.32,178.31,1.16995997]
[1734694483172,43.4049542,178.34,178.31,1.16995997]
[1734694483473,43.4049542,178.32,178.31,1.16995997]
[1734694483649,43.4049542,178.34,178.31,1.16995997]
[1734694484139,43.4049542,178.36,178.32,0.12549]
[1734694484459,43.4049542,178.38,178.32,0.12549]
[1734694484964,43.4049542,178.36,178.32,0.12549]
[1734694485440,43.4049542,178.34,178.32,1.16995997]
[1734694485639,43.4049542,178.36,178.32,1.16995997]
[1734694485846,43.4049542,178.38,178.32,1.16995997]
[1734694486233,43.4049542,178.38,178.33,0.12549]
[1734694486438,43.4049542,178.4,178.33,0.12549]
[1734694486641,43.4049542,178.4,178.33,20.12549]
[1734694486856,43.4049542,178.38,178.33,0.12549]
[1734694487454,43.4049542,178.38,178.32,1.16995997]
[1734694487455,43.4049542,178.34,178.32,1.16995997]
[1734694488450,30.0,178.35,178.32,1.16995997]
[1734694488643,43.4049542,178.34,178.32,1.16995997]
[1734694489234,73.4049542,178.34,178.32,1.16995997]
[1734694489440,43.4049542,178.34,178.32,1.16995997]
[1734694489741,73.4049542,178.34,178.32,1.16995997]
[1734694490336,87.4230542,178.34,178.32,1.05296397]
[1734694490571,43.4049542,178.33,178.32,1.05296397]
[1734694490764,86.8099084,178.33,178.32,0.94766757]
[1734694491045,43.4049542,178.33,178.32,0.94766757]
[1734694491248,43.4049542,178.33,178.28,0.94766757]
[1734694491249,43.4049542,178.33,178.01,4.1145]
[1734694491250,30.0,178.13,178.01,4.1145]
[1734694491563,20.0,178.25,178.01,4.1145]
[1734694491564,43.4049542,178.02,178.01,3.93287382]
[1734694492237,30.0,178.0,177.98,1.3775919]
[1734694492436,30.0,177.96,177.82,6.5218]
[1734694492643,43.4049542,177.85,177.82,29.038935]
[1734694492859,43.4049542,177.83,177.73,6.5218]
[1734694493078,30.0,177.85,177.73,6.5218]
[1734694493240,20.0,177.91,177.74,0.84357333]
[1734694493442,30.0,177.88,177.72,4.1145]
[1734694493939,30.0,177.95,177.66,14.0718]
[1734694494157,43.4049542,177.91,177.67,0.84328679]
[1734694494346,43.4049542,177.89,177.78,43.4049542]
[1734694494540,43.4049542,177.84,177.73,43.4049542]
[1734694494743,43.4049542,177.82,177.71,43.4049542]
[1734694494942,43.4049542,177.82,177.73,43.4049542]
[1734694495151,43.4049542,177.86,177.77,43.4049542]
[1734694495337,0.84344052,177.92,177.83,43.4049542]
[1734694495535,43.4049542,177.98,177.87,43.4049542]
[1734694495738,43.4049542,178.02,177.93,0.12549]
[1734694495958,0.84344052,178.01,177.8,0.8427099]
[1734694496459,0.84344052,178.05,177.84,20.0]
[1734694496669,0.84344052,178.05,177.85,0.84269111]
[1734694497042,43.4049542,178.01,177.92,0.12549]
[1734694497242,43.4049542,177.93,177.85,0.84269111]
[1734694497440,43.4049542,177.93,177.7,29.025497]
[1734694497441,43.4049542,177.86,177.75,43.4049542]
[1734694497639,43.4049542,177.89,177.78,43.4049542]
[1734694497836,43.4049542,177.89,177.72,14.067]
[1734694497837,0.84344052,177.88,177.73,0.84342016]
[1734694498054,43.4049542,177.89,177.79,43.4049542]
[1734694498257,0.84344052,177.88,177.8,0.12549]
[1734694498456,43.4049542,177.91,177.79,43.4049542]
[1734694498669,0.84344052,177.9,177.81,43.4049542]
[1734694498840,0.84344052,177.9,177.76,0.84334194]
[1734694499044,43.4049542,177.87,177.74,14.0653]
[1734694499358,0.84344052,177.9,177.82,43.4049542]
[1734694499663,0.84344052,177.99,177.89,0.12549]
[1734694499861,0.82344052,177.99,177.86,8.6221235]
[1734694500067,43.4049542,177.97,177.86,8.6221235]
[1734694500361,0.80344052,177.99,177.9,43.4049542]
[1734694500562,0.80344052,177.99,177.91,0.12549]
[1734694500774,43.4049542,177.96,177.86,43.4049542]
[1734694500956,0.80344052,177.99,177.92,0.12549]
[1734694501152,10.0,178.0,177.96,43.4049542]
[1734694501456,10.0,178.0,177.99,43.4049542]
[1734694501659,10.0,178.0,177.99,43.5304442]
[1734694502167,43.4049542,178.2,178.08,43.4049542]
[1734694502168,43.4049542,178.17,178.08,43.4049542]
[1734694502357,43.4049542,178.21,178.12,43.4049542]
[1734694502559,43.4049542,178.19,178.1,0.12549]
[1734694502952,30.0,178.22,178.11,43.4049542]
[1734694502953,43.4049542,178.21,178.11,43.4049542]
[1734694503153,43.4049542,178.23,178.11,43.4049542]
[1734694503358,30.0,178.26,178.17,43.4049542]
[1734694503663,43.4049542,178.31,178.21,43.4049542]
[1734694503963,30.0,178.32,178.15,0.84157885]
[1734694504177,43.4049542,178.25,178.11,43.4049542]
[1734694504360,43.4049542,178.27,178.09,20.0]
[1734694504545,43.4049542,178.25,178.15,43.4049542]
[1734694504756,43.4049542,178.21,178.11,43.4049542]
[1734694504947,43.4049542,178.18,178.08,43.4049542]
[1734694505185,43.4049542,178.11,178.06,8.65262454]
[1734694505371,43.4049542,178.07,178.06,8.65262454]
[1734694505579,43.4049542,178.07,177.99,2.49762454]
[1734694505752,43.4049542,178.0,177.99,2.49762454]
[1734694505953,73.4049542,178.0,177.99,1.29362454]
[1734694506264,20.0,177.92,177.76,43.4049542]
[1734694506574,43.4049542,177.84,177.74,43.4049542]
[1734694506874,43.4049542,177.82,177.72,49.8722542]
[1734694507180,43.4049542,177.78,177.68,47.6123542]
[1734694507384,30.0,177.81,177.68,4.2074]
[1734694507586,43.4049542,177.93,177.64,43.4049542]
[1734694507587,43.4049542,177.74,177.64,43.4049542]
[1734694507881,43.4049542,177.72,177.63,1.3775919]
[1734694508082,43.4049542,177.74,177.64,43.4049542]
[1734694508266,43.4049542,177.78,177.68,43.4049542]
[1734694508457,43.4049542,177.76,177.64,0.84402461]
[1734694508655,43.4049542,177.74,177.64,43.4049542]
[1734694508871,43.4049542,177.84,177.63,1.3775919]
[1734694508872,43.4049542,177.72,177.63,1.3775919]
[1734694509074,43.4049542,177.7,177.63,1.3775919]
[1734694509679,43.4049542,177.66,177.63,1.3775919]
[1734694509884,43.4049542,177.64,177.63,1.3775919]
[1734694510582,43.4049542,177.66,177.63,1.3775919]
[1734694510752,43.4049542,177.64,177.63,1.3775919]
[1734694510950,73.4049542,177.64,177.63,1.3775919]
[1734694511389,43.4049542,177.66,177.63,1.3775919]
[1734694511672,43.4049542,177.64,177.63,1.3775919]
[1734694511870,43.4049542,177.56,177.46,43.4049542]
[1734694512076,43.4049542,177.54,177.44,70.0467632]
[1734694512277,73.4049542,177.58,177.48,43.4049542]
[1734694512452,43.4049542,177.63,177.52,41.96811635]
[1734694512657,43.4049542,177.56,177.46,43.4049542]
[1734694512856,30.0,177.52,177.44,47.4881542]
[1734694513171,30.0,177.61,177.45,0.84528589]
[1734694513356,30.0,177.65,177.45,0.84493519]
[1734694513556,30.0,177.65,177.44,4.0832]
[1734694513557,30.0,177.57,177.44,4.0832]
[1734694513957,30.0,177.62,177.44,4.0832]
[1734694514159,43.4049542,177.58,177.44,4.0832]
[1734694514466,30.0,177.53,177.44,47.4881542]
[1734694514675,43.4049542,177.56,177.46,43.4049542]
[1734694514971,43.4049542,177.55,177.46,43.4049542]
[1734694515275,73.4049542,177.55,177.44,47.4881542]
[1734694515654,30.0,177.5,177.4,0.84517602]
[1734694515868,73.83928939,177.48,177.32,14.0987]
[1734694516061,43.83928939,177.5,177.39,43.83928939]
[1734694516251,43.83928939,177.56,177.45,43.83928939]
[1734694516456,43.83928939,177.55,177.45,43.83928939]
[1734694516699,30.0,177.54,177.43,43.83928939]
[1734694516857,3.7938,177.75,177.45,43.83928939]
[1734694516858,43.83928939,177.56,177.45,43.83928939]
[1734694517057,43.83928939,177.56,177.46,0.12549]
[1734694517487,47.63308939,177.75,177.51,43.83928939]
[1734694517488,43.83928939,177.61,177.51,43.83928939]
[1734694517654,47.63308939,177.75,177.47,43.83928939]
[1734694517655,43.83928939,177.57,177.47,43.83928939]
[1734694517856,43.83928939,177.57,177.43,10.834]
[1734694517857,43.83928939,177.53,177.43,54.67328939]
[1734694518071,43.83928939,177.55,177.44,43.83928939]
[1734694518270,43.83928939,177.57,177.49,0.12549]
[1734694518584,43.83928939,177.53,177.43,43.83928939]
[1734694518876,43.83928939,177.45,177.4,22.565805]
[1734694519094,43.83928939,177.49,177.4,22.565805]
[1734694519269,43.83928939,177.53,177.44,0.12549]
[1734694519592,43.83928939,177.51,177.41,43.83928939]
[1734694519801,30.0,177.64,177.44,43.83928939]
[1734694519967,43.83928939,177.61,177.51,43.83928939]
[1734694520163,52.567765,177.7,177.56,43.83928939]
[1734694520394,65.13206092,177.92,177.42,22.569365]
[1734694520395,43.83928939,177.58,177.42,22.569365]
[1734694520702,43.83928939,177.51,177.42,22.569365]
[1734694520888,43.83928939,177.47,177.42,22.569365]
[1734694521072,43.83928939,177.43,177.29,43.83928939]
[1734694521269,43.83928939,177.43,177.27,2.22291917]
[1734694521270,30.0,177.53,177.36,43.83928939]
[1734694521471,43.83928939,177.43,177.38,22.574498]
[1734694521695,43.83928939,177.41,177.3,58.78456046]
[1734694521861,43.83928939,177.37,177.27,1.3775919]
[1734694522077,30.0,177.43,177.27,1.3775919]
[1734694522078,43.83928939,177.41,177.29,43.83928939]
[1734694522395,43.83928939,177.43,177.33,43.83928939]
[1734694522696,43.83928939,177.37,177.28,14.94756622]
[1734694522902,43.83928939,177.42,177.31,43.83928939]
[1734694523188,43.83928939,177.42,177.27,1.3775919]
[1734694523189,30.0,177.38,177.27,1.3775919]
[1734694523395,43.83928939,177.33,177.27,1.3775919]
[1734694523584,0.86566622,177.39,177.27,1.3775919]
[1734694523756,43.83928939,177.37,177.27,1.3775919]
[1734694523960,43.83928939,177.33,177.27,1.3775919]
[1734694524198,43.83928939,177.31,177.27,1.3775919]
[1734694524401,43.83928939,177.29,177.27,1.3775919]
[1734694524701,0.86566622,177.28,177.27,1.3775919]
[1734694526966,0.86566622,177.32,177.27,1.3775919]
[1734694527168,33.38455817,177.49,177.27,1.3775919]
[1734694527169,43.83928939,177.39,177.32,0.12549]
[1734694527406,30.0,177.43,177.33,43.83928939]
[1734694527407,0.86566622,177.38,177.33,43.83928939]
[1734694527702,0.86566622,177.42,177.33,43.83928939]
[1734694527878,30.0,177.34,177.27,1.3775919]
[1734694528076,30.86566622,177.33,177.27,1.3775919]
[1734694528392,43.83928939,177.49,177.31,43.83928939]
[1734694528597,43.83928939,177.53,177.41,0.12549]
[1734694528791,14.0769,177.6,177.45,0.12549]
[1734694528792,43.83928939,177.55,177.45,0.12549]
[1734694529207,43.83928939,177.53,177.42,43.83928939]
[1734694529497,43.83928939,177.47,177.37,23.776884]
[1734694529664,43.83928939,177.49,177.38,43.83928939]
[1734694529869,6.8633,177.44,177.29,14.1011]
[1734694530081,30.0,177.38,177.17,10.8143]
[1734694530273,30.0,177.45,177.18,0.84610703]
[1734694530469,30.0,177.37,177.18,0.84610703]
[1734694530688,30.0,177.45,177.28,0.84608002]
[1734694530896,30.0,177.37,177.18,0.84564817]
[1734694531096,43.83928939,177.46,177.34,43.83928939]
[1734694531275,43.83928939,177.44,177.32,43.83928939]
[1734694531608,43.83928939,177.48,177.3,43.83928939]
[1734694531609,30.0,177.48,177.3,43.83928939]
[1734694531895,43.83928939,177.42,177.3,43.83928939]
[1734694532087,30.0,177.38,177.27,1.3775919]
[1734694532273,20.0,177.29,177.07,43.83928939]
[1734694532478,20.0,177.29,177.0,33.57]
[1734694532479,43.83928939,177.2,177.09,43.83928939]
[1734694532671,43.83928939,177.14,177.05,0.84632101]
[1734694532866,43.83928939,177.18,177.07,43.83928939]
[1734694533067,30.0,177.25,177.08,0.84671557]
[1734694533377,30.0,177.25,177.0,70.6208]
[1734694533378,43.83928939,177.26,177.14,43.83928939]
[1734694533579,43.83928939,177.27,177.15,44.68546635]
[1734694533792,43.83928939,177.25,177.15,44.68546635]
[1734694533988,43.83928939,177.31,177.19,43.83928939]
[1734694534202,30.0,177.46,177.22,0.12549]
[1734694534503,30.0,177.46,177.13,33.57]
[1734694534504,43.83928939,177.26,177.14,43.83928939]
[1734694534805,43.83928939,177.3,177.2,43.83928939]
[1734694534980,43.83928939,177.24,177.14,43.83928939]
[1734694535180,43.83928939,177.19,177.08,43.83928939]
[1734694535497,43.83928939,177.15,177.04,43.83928939]
[1734694535680,43.83928939,177.2,177.08,43.83928939]
[1734694535881,43.83928939,177.18,177.08,43.83928939]
[1734694536100,43.83928939,177.2,177.08,43.83928939]
[1734694536271,43.83928939,177.24,177.13,0.12549]
[1734694536596,43.83928939,177.24,177.13,43.83928939]
[1734694536908,43.83928939,177.24,177.07,44.68577572]
[1734694536909,43.83928939,177.18,177.07,44.68577572]
[1734694537070,30.0,177.22,177.07,44.68577572]
[1734694537271,43.83928939,177.21,177.09,43.83928939]
[1734694537495,43.83928939,177.21,176.99,30.01128413]
[1734694537496,43.83928939,177.11,176.99,30.01128413]
[1734694537699,7.39739039,177.28,176.99,30.01128413]
[1734694537700,14.1009,177.3,177.08,43.83928939]
[1734694538001,30.0,177.26,177.16,43.83928939]
[1734694538196,43.83928939,177.23,177.12,43.83928939]
[1734694538401,43.83928939,177.19,177.08,43.83928939]
[1734694538603,43.83928939,177.14,177.0,23.45482415]
[1734694538771,43.83928939,177.14,177.04,43.83928939]
[1734694539208,30.0,177.17,177.04,43.83928939]
[1734694539209,43.83928939,177.16,177.04,43.83928939]
[1734694539513,43.83928939,177.1,176.99,59.72567352]
[1734694539879,43.83928939,177.21,176.99,15.88638413]
[1734694539880,43.83928939,177.08,176.99,15.88638413]
[1734694540185,43.83928939,177.1,176.99,59.72567352]
[1734694540384,43.83928939,177.21,176.99,15.88638413]
[1734694540385,43.83928939,177.06,176.99,15.88638413]
[1734694540583,43.83928939,177.08,176.99,15.88638413]
[1734694540788,30.0,177.1,176.99,15.88638413]
[1734694541097,43.83928939,177.06,176.99,15.88638413]
[1734694541307,43.83928939,177.04,176.99,15.88638413]
[1734694541715,43.83928939,177.02,176.99,15.88638413]
[1734694541875,43.83928939,177.0,176.99,15.88638413]
[1734694542577,43.83928939,177.02,176.99,15.88638413]
[1734694543508,43.83928939,177.04,176.99,15.88638413]
[1734694543807,43.83928939,177.02,176.99,15.88638413]
[1734694544104,43.83928939,177.0,176.99,15.88638413]
[1734694544288,43.83928939,177.02,176.99,15.88638413]
[1734694544484,30.0,177.1,176.99,15.88638413]
[1734694544701,43.83928939,177.04,176.99,15.88638413]
[1734694545188,43.83928939,177.02,176.99,15.88638413]
[1734694545405,43.83928939,177.06,177.0,0.12549]
[1734694545603,5.63974363,178.71,177.05,0.12549]
[1734694545604,43.83928939,177.17,177.05,0.12549]
[1734694545780,43.83928939,177.17,177.08,43.83928939]
[1734694545982,43.83928939,177.17,177.06,43.83928939]
[1734694546215,30.0,177.21,177.0,0.84730537]
[1734694546216,43.83928939,177.19,177.08,43.83928939]
[1734694546403,43.83928939,177.19,177.03,43.83928939]
[1734694546404,43.83928939,177.21,177.1,43.83928939]
[1734694546611,43.83928939,177.3,177.21,20.0]
[1734694546912,30.0,177.35,177.29,43.83928939]
[1734694547089,6.6811,177.51,177.26,43.83928939]
[1734694547090,30.0,177.39,177.26,43.83928939]
[1734694547412,43.83928939,177.35,177.27,0.12549]
[1734694547706,43.83928939,177.3,177.19,43.83928939]
[1734694548001,43.83928939,177.3,177.11,43.83928939]
[1734694548002,43.83928939,177.22,177.11,43.83928939]
[1734694548175,6.7401,177.58,177.09,0.8466234]
[1734694548383,30.0,177.44,177.14,282.63540945]
[1734694548578,43.83928939,177.37,177.27,43.83928939]
[1734694548814,30.0,177.45,177.17,0.84596187]
[1734694549185,30.0,177.49,177.17,0.84596187]
[1734694549500,30.0,177.42,177.18,0.12549]
[1734694549715,43.83928939,177.34,177.19,0.84599629]
[1734694549916,43.83928939,177.38,177.27,43.83928939]
[1734694550208,43.83928939,177.38,177.21,43.83928939]
[1734694550209,43.83928939,177.5,177.38,0.12549]
[1734694550503,43.83928939,177.47,177.3,43.83928939]
[1734694550716,22.583754,177.59,177.3,4.5417]
[1734694550903,4.3253,177.8,177.3,4.5417]
[1734694550904,30.0,177.72,177.43,282.63540945]
[1734694551078,30.0,177.8,177.45,11.5487]
[1734694551276,30.0,177.76,177.48,20.0]
[1734694551507,7.1756,177.86,177.48,20.0]
[1734694551508,30.0,177.74,177.49,0.84439562]
[1734694551694,30.0,177.74,177.5,0.12549]
[1734694551899,73.83928939,177.73,177.61,43.83928939]
[1734694552094,30.0,177.73,177.63,43.83928939]
[1734694552295,30.0,177.71,177.61,43.83928939]
[1734694552704,30.0,177.71,177.63,43.83928939]
[1734694552881,30.0,177.68,177.59,43.83928939]
[1734694553089,30.0,177.73,177.59,43.83928939]
[1734694553292,73.83928939,177.73,177.63,43.83928939]
[1734694553785,43.83928939,177.75,177.63,43.83928939]
[1734694553990,30.0,177.7,177.53,20.0]
[1734694554206,43.83928939,177.75,177.53,20.0]
[1734694554207,43.83928939,177.69,177.58,43.83928939]
[1734694554402,43.83928939,177.71,177.6,43.83928939]
[1734694554605,43.83928939,177.75,177.64,43.83928939]
[1734694554978,43.83928939,177.75,177.6,20.0]
[1734694555179,43.83928939,177.77,177.67,43.83928939]
[1734694555501,43.83928939,177.81,177.71,43.83928939]
[1734694555815,72.29072293,177.93,177.73,43.83928939]
[1734694555816,43.83928939,177.83,177.73,43.83928939]
[1734694556106,30.0,177.87,177.77,43.83928939]
[1734694556107,43.83928939,177.87,177.77,43.83928939]
[1734694556310,43.83928939,177.85,177.73,43.83928939]
[1734694556803,43.83928939,177.81,177.71,43.83928939]